fUST/lending_fUST_20240501
["ID","MTS","AMOUNT","RATE_DAILY","PERIOD"]
[325177258,1714549841068,-432.99149717,0.00032876,2]
[325177259,1714549841077,-437.89883949,0.00032876,2]
[325177260,1714549841087,-500.0,0.00032876,2]
[325177261,1714549841096,-500.0,0.00032876,2]
[325177262,1714549841106,-500.0,0.00032876,2]
[325177263,1714549841116,-500.0,0.00032876,2]
[325177264,1714549841126,-443.12770729,0.00032876,2]
[325177265,1714549841136,-466.46671286,0.00034,4]
[325177266,1714549841146,-615.95093679,0.00034748,2]
[325177267,1714549841155,-154.76784823,0.00035,4]
[325177268,1714549841164,-168.26326223,0.00035484,2]
[325177269,1714549841173,-165.711961,0.00035616,120]
[325177270,1714549841183,-8241.40134261,0.00037,5]
[325177271,1714549841196,-1146.68101841,0.00038118,8]
[325177272,1714549841206,-249.9,0.00038506,3]
[325177273,1714549841215,-168.26326223,0.00038698,2]
[325177274,1714549841225,-486.33472313,0.0004,2]
[325177275,1714549841236,-252.73056689,0.00041,2]
[325177276,1714549841245,-165.711961,0.00041553,120]
[325177277,1714549841254,-168.26326223,0.00041912,2]
[325177278,1714549841349,-502.90835576,0.00042841,14]
[325177279,1714549841361,-612.10943,0.00042841,2]
[325177280,1714549841372,-612.10943,0.00044168,2]
[325177281,1714549841381,-1146.68101841,0.00044564,11]
[325177282,1714549841391,-339.86016633,0.00044581,4]
[325177283,1714549841400,-1520.24750243,0.00045,4]
[325177284,1714549841409,-151.0,0.00045,120]
[325177285,1714549841420,-168.26326223,0.00045126,2]
[325177286,1714549841431,-612.10944,0.00045495,2]
[325177287,1714549841445,-612.10943,0.00046822,2]
[325177288,1714549841455,-151.0,0.00046877,120]
[325177289,1714549841465,-165.711961,0.00047489,120]
[325177290,1714549841475,-1000.22859201,0.00048,30]
[325177291,1714549841485,-849.32808841,0.00048104,120]
[325177292,1714549841494,-612.10944,0.00048149,2]
[325177293,1714549841504,-5800.0,0.00048333,120]
[325177294,1714549841513,-168.26326223,0.0004834,2]
[325177295,1714549841524,-8559.83351705,0.00048436,4]
[325177296,1714549841534,-1289.32900618,0.00048437,4]
[325177297,1714549841544,-1025.6785584,0.00048437,4]
[325177298,1714549841554,-160.46474346,0.00048439,30]
[325177299,1714549841563,-160.0,0.00048439,30]
[325177300,1714549841572,-160.0,0.00048439,30]
[325177301,1714549841582,-5861.23,0.00048439,7]
[325177302,1714549841592,-5861.23,0.00048439,7]
[325177303,1714549841601,-5861.23,0.00048439,7]
[325177304,1714549841611,-5861.23,0.00048439,7]
[325177305,1714549841620,-5861.23,0.00048439,7]
[325177306,1714549841630,-5861.23,0.00048439,7]
[325177307,1714549841639,-5861.23,0.00048439,7]
[325177308,1714549841649,-5861.23,0.00048439,7]
[325177309,1714549841659,-5861.23,0.00048439,7]
[325177310,1714549841668,-5861.23,0.00048439,7]
[325177311,1714549841678,-999.0,0.00048439,7]
[325177312,1714549841687,-999.0,0.00048439,10]
[325177313,1714549841700,-999.0,0.00048439,13]
[325177314,1714549841709,-999.0,0.00048439,16]
[325177315,1714549841719,-999.0,0.00048439,19]
[325177316,1714549841727,-520555.26592851,0.0004844,2]
[325177366,1714549843382,-2807.88924572,0.00017528,2]
[325177369,1714549843394,-700.70596004,0.00017528,2]
[325177371,1714549843405,-522.20590757,0.00017928,2]
[325177373,1714549843418,-598.46735449,0.00018776,2]
[325177376,1714549843432,-574.47844305,0.00018873,2]
[325177378,1714549843444,-12031.85308913,0.00035616,3]
[325177381,1714549843460,-2456.65691087,0.00035616,3]
[325177383,1714549843471,-3327.10422565,0.0004844,2]
[325177417,1714549844010,-500.0,0.00019178,2]
[325177418,1714549844023,-500.0,0.00019178,2]
[325177419,1714549844035,-500.0,0.00019178,2]
[325177420,1714549844047,-500.0,0.00019178,2]
[325177421,1714549844059,-500.0,0.00019178,2]
[325177422,1714549844071,-500.0,0.00019178,2]
[325177423,1714549844082,-500.0,0.00019178,2]
[325177424,1714549844094,-550.0,0.00019178,2]
[325177425,1714549844106,-450.0,0.00032876,2]
[325177426,1714549844118,-3009.54566868,0.0004844,2]
[325177427,1714549844137,-576.0,0.0004844,2]
[325177428,1714549844938,3051.58762507,9.999e-05,2]
[325177429,1714549845302,-598.46735447,0.0001926,2]
[325177430,1714549845313,-766.3831559,0.00020913,2]
[325177431,1714549845323,-1508.33603248,0.0004844,2]
[325177448,1714549848434,-310.85808073,0.00019178,2]
[325177450,1714549848443,-291.14739919,0.00020913,2]
[325177451,1714549848455,-187.0,0.0003,2]
[325177453,1714549848464,-4970.99452008,0.00031805,2]
[325177455,1714549848499,-7852.69335862,0.00031805,2]
[325177456,1714549848508,-1996.0670082,0.0004844,2]
[325177469,1714549852718,154.76784823,9.999e-05,2]
[325177470,1714549853079,154.76784823,0.0001,2]
[325177471,1714549854481,2006.33466643,9.999e-05,2]
[325177472,1714549854503,8326.63051336,9.999e-05,2]
[325177473,1714549854536,5389.30494123,9.999e-05,2]
[325177474,1714549856900,186.80420864,9.999e-05,2]
[325177475,1714549860647,2088.22910931,9.999e-05,2]
[325177476,1714549862034,182.24017576,9.999e-05,2]
[325177477,1714549871100,154.76784823,0.0001,2]
[325177478,1714549889469,154.76784823,9.999e-05,2]
[325177479,1714549891077,154.76784823,0.0001,2]
[325177480,1714549912549,154.76784823,9.999e-05,2]
[325177481,1714549913223,154.76784823,0.0001,2]
[325177482,1714549931122,217.52069571,0.0001,2]
[325177484,1714550015546,19198.47309756,0.0001,2]
[325177485,1714550036735,308.21165093,0.0001,2]
[325177486,1714550037551,6264.94228687,0.0001,2]
[325177487,1714550047852,24900.0,0.00015975,2]
[325177493,1714550068261,250.0,0.00015969,2]
[325177494,1714550068521,25280.3643586,0.00015969,2]
[325177495,1714550091429,10000.0,0.00027,15]
[325177496,1714550126580,154.76784823,0.00015969,2]
[325177497,1714550140522,154.97637476,0.00015969,2]
[325177500,1714550215052,794.5090815,0.00015852,2]
[325177501,1714550226353,932.0620786,0.00015851,2]
[325177502,1714550262381,282.10649285,0.00015851,2]
[325177503,1714550265145,2645.8770363,0.00013469,2]
[325177504,1714550268671,154.76784823,9.999e-05,2]
[325177505,1714550271031,285.51914084,0.00015851,2]
[325177506,1714550274033,154.76784823,0.00015851,2]
[325177507,1714550275084,19202.35106111,0.00015851,2]
[325177508,1714550282318,180.81921797,0.00015851,2]
[325177509,1714550289997,207.87916013,0.00015851,2]
[325177510,1714550291683,2325.46165434,0.00015851,2]
[325177511,1714550301893,154.76784823,9.999e-05,2]
[325177512,1714550307994,154.76784823,9.999e-05,2]
[325177513,1714550321203,154.76784823,9.999e-05,2]
[325177514,1714550322010,154.76784823,9.999e-05,2]
[325177515,1714550325502,154.76784823,9.998e-05,2]
[325177516,1714550325713,154.76784823,9.998e-05,2]
[325177517,1714550326233,551.42384778,9.998e-05,2]
[325177518,1714550326755,769.1530622,0.0001,2]
[325177519,1714550327244,154.76784823,9.998e-05,2]
[325177520,1714550328131,928.84070559,0.00014,2]
[325177521,1714550331007,154.76784823,9.999e-05,2]
[325177522,1714550333724,154.76784823,9.999e-05,2]
[325177523,1714550339281,154.76784823,9.999e-05,2]
[325177524,1714550344785,154.76784823,9.999e-05,2]
[325177525,1714550351697,683.41665733,9.999e-05,2]
[325177526,1714550354434,771.73283885,9.999e-05,2]
[325177527,1714550356840,157.99223186,9.999e-05,2]
[325177528,1714550359414,1576.98678225,9.999e-05,2]
[325177529,1714550360551,1492.097253,9.999e-05,2]
[325177530,1714550361014,574.47844305,9.999e-05,2]
[325177531,1714550365786,154.76784823,9.999e-05,2]
[325177532,1714550371998,1183.2518388,0.00015273,2]
[325177533,1714550375707,154.75239617,9.999e-05,2]
[325177534,1714550377263,154.75239617,9.999e-05,2]
[325177535,1714550379935,154.75239617,9.999e-05,2]
[325177536,1714550384888,154.75239617,9.999e-05,2]
[325177537,1714550385062,291.72490529,9.999e-05,2]
[325177538,1714550388993,154.75239617,9.999e-05,2]
[325177539,1714550391256,522.20590757,9.999e-05,2]
[325177540,1714550393258,154.75239617,9.999e-05,2]
[325177541,1714550394799,526.99118961,9.999e-05,2]
[325177542,1714550394835,154.75239617,9.999e-05,2]
[325177543,1714550398325,208.1490103,9.999e-05,2]
[325177544,1714550398354,730.81737118,0.000138,2]
[325177545,1714550399085,409.34378337,9.999e-05,2]
[325177546,1714550399843,446.72143296,9.999e-05,2]
[325177547,1714550401535,1622.14156305,9.999e-05,2]
[325177553,1714550404492,235.8677462,9.999e-05,2]
[325177554,1714550405272,314.85282276,9.999e-05,2]
[325177555,1714550405572,475.32221455,9.999e-05,2]
[325177556,1714550406581,154.75239617,9.999e-05,2]
[325177557,1714550406616,312.97578303,0.00015,2]
[325177558,1714550407208,164.12449939,9.999e-05,2]
[325177559,1714550407333,308.89684042,9.999e-05,2]
[325177560,1714550408155,939.61631274,0.00015,2]
[325177561,1714550410250,460.2591171,9.999e-05,2]
[325177562,1714550410699,1313.3815191,0.0001,2]
[325177563,1714550427631,154.75239617,9.999e-05,2]
[325177564,1714550435015,472.95493354,9.999e-05,2]
[325177565,1714550439014,700.70596004,9.999e-05,2]
[325177566,1714550451149,200.12196174,9.999e-05,2]
[325177567,1714550451197,475.3346953,9.999e-05,2]
[325177568,1714550453460,514.39558646,0.00016,2]
[325177569,1714550457595,1091.78088148,9.999e-05,2]
[325177571,1714550464615,3000.0,0.00015139,2]
[325177572,1714550468027,212.32996443,9.999e-05,2]
[325177573,1714550468935,565.13944552,9.999e-05,2]
[325177574,1714550469023,550.79765797,9.999e-05,2]
[325177575,1714550473320,362.38148801,9.999e-05,2]
[325177576,1714550473428,379.53531224,9.998e-05,2]
[325177577,1714550475642,1880.12188062,9.998e-05,2]
[325177578,1714550481653,186.8427069,0.00015137,2]
[325177579,1714550518170,1273.2424305,0.00015132,2]
[325177580,1714550524652,5891.15158,0.00015131,2]
[325177581,1714550538034,689.8184699,0.0001525,2]
[325177582,1714550545319,250.0,0.00015128,2]
[325177583,1714550554493,24900.0,0.00015126,2]
[325177584,1714550571499,2184.14636862,9.999e-05,2]
[325177585,1714550590632,25529.238159,0.0001512,2]
[325177586,1714550725100,1892.26874616,0.00016,2]
[325177587,1714550725271,551.42384778,0.00016,2]
[325177588,1714550728467,20200.60362902,0.00016,2]
[325177589,1714550731072,520.59853225,0.00016,2]
[325177590,1714550732794,683.41665733,0.00016,2]
[325177591,1714550732984,565.13944552,0.00016,2]
[325177592,1714550733559,700.70596004,0.00016,2]
[325177593,1714550736051,212.32996443,0.00016,2]
[325177594,1714550737366,362.38148801,0.00016,2]
[325177595,1714550739881,308.89684042,0.00016,2]
[325177596,1714550742100,574.47844305,0.00016,2]
[325177597,1714550743082,5810.00596259,0.00016,2]
[325177598,1714550743263,154.78330338,0.00016,2]
[325177599,1714550745547,472.95493354,0.00016,2]
[325177600,1714550746303,154.78330338,0.00016,2]
[325177601,1714550747686,1492.097253,0.00016,2]
[325177602,1714550747880,157.99223186,0.00016,2]
[325177603,1714550749942,15676.49529171,0.00016,2]
[325177604,1714550750943,154.78330338,0.00016,2]
[325177605,1714550750984,339.86016633,0.0001512,2]
[325177606,1714550753285,475.3346953,0.00016,2]
[325177607,1714550753440,154.78330338,9.999e-05,2]
[325177608,1714550755722,526.99118961,0.00016,2]
[325177609,1714550756746,1313.3815191,0.00016,2]
[325177610,1714550759214,2627.08475898,0.00016,2]
[325177611,1714550759344,200.12196174,0.00016,2]
[325177612,1714550759913,514.39558646,0.00016,2]
[325177613,1714550762109,2590.79776208,0.00016,2]
[325177614,1714550762220,522.20590757,0.00016,2]
[325177615,1714550762282,154.78330338,0.00016,2]
[325177616,1714550762831,154.78330338,0.00016,2]
[325177617,1714550763127,291.72490529,0.00016,2]
[325177618,1714550764887,7875.36127702,0.00016,2]
[325177619,1714550766026,2101.71813346,0.00016,2]
[325177620,1714550770035,154.78330338,0.00016,2]
[325177621,1714550770509,15980.53375859,0.00016,2]
[325177622,1714550777892,154.78330338,9.999e-05,2]
[325177623,1714550837492,154.78330338,9.999e-05,2]
[325177624,1714550842333,208.1490103,9.999e-05,2]
[325177625,1714550843106,1622.14156305,9.999e-05,2]
[325177626,1714550846770,409.34378337,9.999e-05,2]
[325177627,1714550895010,771.73283885,9.999e-05,2]
[325177647,1714550905929,446.72143296,9.999e-05,2]
[325177648,1714550909644,475.32221455,9.999e-05,2]
[325177650,1714550949161,-154.78330338,0.00013795,2]
[325177651,1714550949181,-200.12196174,0.00013795,2]
[325177652,1714550949201,-1088.50831524,0.00013795,2]
[325177774,1714551032862,-291.72490529,0.00013691,2]
[325177776,1714551032871,-154.76784823,0.00013691,2]
[325177778,1714551032881,-771.73283885,0.00013692,2]
[325177780,1714551032891,-472.95493354,0.00013692,2]
[325177782,1714551032906,-200.12196174,0.00013692,2]
[325177784,1714551032915,-2590.79776208,0.00013693,2]
[325177786,1714551032925,-171.41397663,0.00013693,2]
[325177788,1714551032936,-303.92071867,0.00013693,2]
[325177790,1714551032946,-720.1751481,0.00013694,2]
[325177792,1714551032956,-2627.08475898,0.00013694,2]
[325177794,1714551032965,-362.38148801,0.00013694,2]
[325177796,1714551032975,-574.47844305,0.00013694,2]
[325177798,1714551032984,-38111.17451088,0.00013695,2]
[325177800,1714551032995,-326.92575,0.00013695,2]
[325177804,1714551033019,-383.7998292,0.00013691,2]
[325177806,1714551033031,-7491.56144782,0.00013691,2]
[325177808,1714551033041,-460.73278918,0.00013695,2]
[325177810,1714551033051,-979.6960558,0.00013695,2]
[325177864,1714551038159,-308.89684042,0.0001369,2]
[325177865,1714551038168,-683.41665733,0.0001369,2]
[325177866,1714551038178,-409.34378337,0.00013694,2]
[325177867,1714551038187,-105.91048293,0.00013695,2]
[325177868,1714551038199,-19242.2999745,0.00013695,2]
[325177869,1714551038208,-700.70596004,0.00013695,2]
[325177870,1714551038218,-565.13944552,0.00013695,2]
[325177871,1714551038227,-208.1490103,0.00013696,2]
[325177872,1714551038236,-15676.49529171,0.00013696,2]
[325177873,1714551038246,-20200.60362902,0.00013696,2]
[325177874,1714551038255,-475.32221455,0.00013696,2]
[325177875,1714551038264,-446.72143296,0.00013696,2]
[325177876,1714551038276,-154.78330338,0.00013697,2]
[325177877,1714551038285,-1622.14156305,0.00013697,2]
[325177878,1714551038296,-1892.26874616,0.00013697,2]
[325177879,1714551038305,-203.71789833,0.00013697,2]
[325177880,1714551038315,-2945.57579,0.00013699,2]
[325177881,1714551038325,-3000.0,0.00013699,2]
[325177882,1714551038335,-730.81737118,0.000138,2]
[325177883,1714551038344,-154.44700816,0.00013899,2]
[325177884,1714551038354,-928.84070559,0.00014,2]
[325177885,1714551038365,-157.42247477,0.00014993,2]
[325177886,1714551038374,-2392.92958612,0.00015,2]
[325177887,1714551038384,-2781.69529347,0.00015,2]
[325177888,1714551038393,-2101.71813346,0.00015,2]
[325177889,1714551038406,-312.97578303,0.00015,2]
[325177890,1714551038416,-265.8334915,0.00015998,2]
[325177891,1714551038425,-1019.31647151,0.00015999,2]
[325177892,1714551038434,-171.26007418,0.00015999,2]
[325177893,1714551038444,-504.2384364,0.00015999,2]
[325177894,1714551038453,-2807.88924572,0.00016,2]
[325177895,1714551038462,-1067.58946021,0.00016,2]
[325177896,1714551038471,-9378.45996285,0.00016,2]
[325177897,1714551038481,-595.53920426,0.00016,2]
[325177898,1714551038490,-255.42392273,0.00016001,2]
[325177899,1714551038499,-5563.23782866,0.00016001,2]
[325177900,1714551038508,-159.59356604,0.00016001,2]
[325177901,1714551038518,-240.9134602,0.00016001,2]
[325177902,1714551038527,-216.31956676,0.00016001,2]
[325177903,1714551038536,-531.70915849,0.00016001,2]
[325177904,1714551038545,-157.39512814,0.00016001,2]
[325177905,1714551038554,-232.09667047,0.00016003,2]
[325177906,1714551038563,-378.70795341,0.00016003,2]
[325177907,1714551038573,-1994.37289975,0.0001605,2]
[325177908,1714551038582,-884.3823641,0.00016136,2]
[325177909,1714551038591,-200.87781761,0.00016136,2]
[325177910,1714551038600,-690.84216039,0.00016136,2]
[325177911,1714551038609,-270.11551119,0.00016142,2]
[325177912,1714551038619,-1014.42919545,0.00016142,2]
[325177913,1714551038628,-315.40798791,0.00016142,2]
[325177914,1714551038638,-382.16649436,0.00016142,2]
[325177915,1714551038647,-514.69752943,0.00016142,2]
[325177916,1714551038658,-159.2304496,0.0001615,2]
[325177917,1714551038668,-1446.15036497,0.0001615,2]
[325177918,1714551038678,-229.5157717,0.0001615,2]
[325177919,1714551038687,-156.00636144,0.0001615,2]
[325177920,1714551038701,-217.02049009,0.0001615,2]
[325177921,1714551038711,-268.15321012,0.00016154,2]
[325177922,1714551038721,-6564.23873126,0.0001616,2]
[325177923,1714551038730,-572.63307088,0.00016162,2]
[325177924,1714551038740,-200.00125004,0.00016839,2]
[325177925,1714551038750,-295.31872937,0.00016839,2]
[325177926,1714551038760,-235.55483464,0.00016839,2]
[325177927,1714551038769,-186.68207453,0.00016839,2]
[325177928,1714551038780,-155.03587426,0.0001684,2]
[325177929,1714551038885,-981.8517699,0.00016859,2]
[325177930,1714551038895,-155.34641122,0.00017958,2]
[325177931,1714551038908,-266.69050184,0.00017958,2]
[325177932,1714551038918,-155.11759518,0.00017959,2]
[325177933,1714551038928,-196.33782247,0.00017959,2]
[325177934,1714551038937,-154.93974595,0.00017959,2]
[325177935,1714551038946,-236.36810996,0.0001796,2]
[325177936,1714551038955,-5684.62345312,0.00018,2]
[325177937,1714551038969,-603.94471779,0.000185,2]
[325177938,1714551038978,-5688.88545001,0.000189,2]
[325177939,1714551038988,-247.77781798,0.00018993,2]
[325177940,1714551038997,-155.34711859,0.00019,2]
[325177941,1714551039006,-257.3302146,0.00019178,2]
[325177942,1714551039014,-225.0,0.00019178,2]
[325177943,1714551039023,-386.06848216,0.00019178,2]
[325177944,1714551039033,-500.0,0.00019178,2]
[325177945,1714551039042,-500.0,0.00019178,2]
[325177946,1714551039051,-244.65050538,0.00019178,2]
[325177947,1714551039060,-500.0,0.00019178,2]
[325177948,1714551039069,-500.0,0.00019178,2]
[325177949,1714551039078,-500.0,0.00019178,2]
[325177950,1714551039087,-437.89883949,0.00019178,2]
[325177951,1714551039096,-432.99149717,0.00019178,2]
[325177952,1714551039106,-500.0,0.00019178,2]
[325177953,1714551039115,-500.0,0.00019178,2]
[325177954,1714551039124,-440.42806359,0.00019178,2]
[325177955,1714551039133,-232.12327811,0.00019178,2]
[325177956,1714551039142,-198.81493656,0.00019178,2]
[325177957,1714551039154,-160.675707,0.00019178,2]
[325177958,1714551039163,-160.557168,0.00019178,2]
[325177959,1714551039171,-1994.37289974,0.00019392,2]
[325177960,1714551039180,-309.2657057,0.00019998,2]
[325177961,1714551039190,-156.57803365,0.00019998,2]
[325177962,1714551039199,-8325.60877946,0.00019998,2]
[325177963,1714551039207,-240.39541651,0.00019998,2]
[325177964,1714551039216,-154.78330338,0.00019998,2]
[325177965,1714551039226,-154.78330338,0.00019998,2]
[325177966,1714551039235,-328.88498333,0.00019998,2]
[325177967,1714551039244,-193.70638634,0.00019999,2]
[325177968,1714551039253,-200.04743827,0.00019999,2]
[325177969,1714551039262,-290.43015015,0.00019999,2]
[325177970,1714551039271,-80000.0,0.0002,2]
[325177971,1714551039280,-1564.49780022,0.0002,2]
[325177972,1714551039288,-123141.52050348,0.0002,2]
[325177973,1714551039297,-154.95398888,0.0002,2]
[325177974,1714551039306,-215.05733111,0.0002,2]
[325177975,1714551039316,-330.04006716,0.0002,2]
[325177976,1714551039325,-5461.4995396,0.0002,2]
[325177977,1714551039334,-241.74656629,0.0002,2]
[325177978,1714551039343,-67435.2931103,0.0002,2]
[325177979,1714551039352,-17178.17797486,0.0002,2]
[325177980,1714551039362,-4235.48489621,0.0002,2]
[325177981,1714551039371,-154.99619266,0.0002,2]
[325177982,1714551039380,-279.65151181,0.0002,2]
[325177983,1714551039390,-400.0,0.0002,2]
[325177984,1714551039400,-154.76784823,0.0002,2]
[325177985,1714551039412,-154.99887784,0.0002,2]
[325177986,1714551039421,-323.87137284,0.0002,2]
[325177987,1714551039430,-200.0,0.0002,2]
[325177988,1714551039439,-662.2339915,0.0002,10]
[325177989,1714551039448,-10593.59324698,0.0002,2]
[325177990,1714551039457,-2945.57579,0.00020548,2]
[325177991,1714551039466,-155.01755094,0.00020912,2]
[325177992,1714551039475,-5000.0,0.00021,2]
[325177993,1714551039484,-3909.7750912,0.00021,2]
[325177994,1714551039494,-10000.0,0.00021918,2]
[325177995,1714551039503,-166.666666,0.00021918,2]
[325177996,1714551039512,-285.73,0.00021918,2]
[325177997,1714551039527,-238.11,0.00021918,2]
[325177998,1714551039543,-198.42,0.00021918,2]
[325177999,1714551039556,-165.35,0.00021918,2]
[325178000,1714551039571,-826.8,0.00021918,2]
[325178001,1714551039587,-159.24114282,0.00022,2]
[325178002,1714551039602,-154.76784823,0.00022,2]
[325178003,1714551039619,-166.666666,0.00022431,2]
[325178004,1714551039633,-1994.37289974,0.00022734,2]
[325178005,1714551039649,-166.666666,0.00022944,2]
[325178006,1714551039664,-714.26625523,0.00023,2]
[325178007,1714551039678,-694.94399901,0.00023408,2]
[325178008,1714551039691,-166.666666,0.00023456,2]
[325178009,1714551039707,-5688.88545001,0.000239,2]
[325178010,1714551039726,-166.666666,0.00023969,2]
[325178011,1714551039743,-693.57389158,0.00024,2]
[325178012,1714551039756,-166.666666,0.00024482,2]
[325178013,1714551039768,-623.74719995,0.00024578,2]
[325178014,1714551039783,-380.0,0.00024658,2]
[325178015,1714551039797,-200.0,0.00024658,2]
[325178016,1714551039809,-10000.0,0.00025,2]
[325178017,1714551039823,-154.76784823,0.00025,2]
[325178018,1714551039836,-154.76784823,0.00025,2]
[325178019,1714551039847,-154.76784823,0.00025,2]
[325178020,1714551039860,-209.85734334,0.00025786,3]
[325178021,1714551039873,-620.18736,0.00025807,2]
[325178022,1714551039887,-11123.59785502,0.00026,2]
[325178023,1714551039901,-1994.37289974,0.00026075,2]
[325178024,1714551039913,-8530.80720591,0.00027,2]
[325178025,1714551039926,-140937.93552914,0.00027,15]
[325178026,1714551039940,-620.009368,0.00027098,2]
[325178027,1714551039952,-154.81422293,0.000274,2]
[325178028,1714551039964,-975.95357194,0.000274,2]
[325178029,1714551039977,-31311.04273711,0.000275,2]
[325178030,1714551039989,-12898.03380334,0.0002763,2]
[325178031,1714551040002,-220.96622212,0.00028,2]
[325178032,1714551040014,-620.0004684,0.00028453,2]
[325178033,1714551040027,-200.800433,0.00028493,2]
[325178034,1714551040040,-200.800433,0.00028493,120]
[325178035,1714551040053,-781.90722588,0.00028637,120]
[325178036,1714551040066,-100932.07621128,0.0002877,2]
[325178037,1714551040079,-1994.37289974,0.00029417,2]
[325178038,1714551040092,-160.0,0.00029517,2]
[325178039,1714551040106,-620.00002342,0.00029875,2]
[325178040,1714551040118,-177337.14194246,0.000299,2]
[325178041,1714551040131,-1751.78944315,0.0003,7]
[325178042,1714551040144,-3723.00911832,0.0003,4]
[325178043,1714551040158,-321248.44818796,0.0003,2]
[325178044,1714551040170,-155.27738812,0.0003,4]
[325178045,1714551040184,-160.0,0.00030065,2]
[325178046,1714551040197,-584.39026024,0.00031,2]
[325178047,1714551040210,-1966.00977365,0.00031,2]
[325178048,1714551040222,-150.5,0.00031208,35]
[325178049,1714551040235,-765.0,0.00031208,35]
[325178050,1714551040249,-150.5,0.00031218,35]
[325178051,1714551040261,-765.0,0.00031218,35]
[325178052,1714551040275,-180.62,0.00031228,35]
[325178053,1714551040289,-765.0,0.00031228,35]
[325178054,1714551040301,-160.0,0.00031237,10]
[325178055,1714551040314,-198.18397486,0.00031237,10]
[325178056,1714551040327,-160.0,0.00031237,10]
[325178057,1714551040340,-667111.56328634,0.00031238,2]
[325178058,1714551040353,-620.00000117,0.00031369,2]
[325178059,1714551040366,-150.5,0.00031809,35]
[325178060,1714551040379,-447.2209758,0.00032,4]
[325178061,1714551040393,-3096.61,0.00032876,7]
[325178062,1714551040405,-3096.61,0.00032876,10]
[325178063,1714551040414,-3096.61,0.00032876,13]
[325178064,1714551040565,-3096.61,0.00032876,16]
[325178065,1714551040575,-3096.61,0.00032876,19]
[325178066,1714551040584,-3096.61,0.00032876,22]
[325178067,1714551040594,-3096.61,0.00032876,25]
[325178068,1714551040603,-3096.61,0.00032876,28]
[325178069,1714551040612,-3096.61,0.00032876,31]
[325178070,1714551040621,-3096.61,0.00032876,34]
[325178071,1714551040630,-3096.61,0.00032876,37]
[325178072,1714551040639,-3096.61,0.00032876,40]
[325178073,1714551040648,-3096.61,0.00032876,43]
[325178074,1714551040663,-3096.61,0.00032876,46]
[325178075,1714551040672,-3096.61,0.00032876,49]
[325178076,1714551040681,-3096.61,0.00032876,52]
[325178077,1714551040690,-3096.61,0.00032876,55]
[325178078,1714551040705,-3096.61,0.00032876,58]
[325178079,1714551040714,-3096.61,0.00032876,61]
[325178080,1714551040723,-3096.61,0.00032876,64]
[325178081,1714551040732,-3096.61,0.00032876,64]
[325178082,1714551040744,-3096.61,0.00032876,64]
[325178083,1714551040753,-3096.61,0.00032876,64]
[325178084,1714551040762,-3096.66067551,0.00032876,64]
[325178085,1714551040772,-620.00000006,0.00032937,2]
[325178086,1714551040781,-586.0669698,0.000339,2]
[325178087,1714551040791,-466.46671286,0.00034,4]
[325178088,1714551040800,-1608.78436868,0.00034,60]
[325178089,1714551040809,-620.0,0.00034584,2]
[325178090,1714551040818,-1000.0,0.000348,3]
[325178091,1714551040827,-1000.0,0.000348,3]
[325178092,1714551040836,-874.0,0.000348,3]
[325178093,1714551040846,-1000.0,0.000348,3]
[325178094,1714551040856,-597.98045973,0.00035,2]
[325178095,1714551040866,-201.81609416,0.00035,4]
[325178096,1714551040876,-1044.02355144,0.00035,30]
[325178097,1714551040885,-849.10028097,0.00035,30]
[325178098,1714551040894,-154.76784823,0.00035,4]
[325178099,1714551040908,-5917.45193267,0.00035,4]
[325178100,1714551040918,-425.45157815,0.00035,10]
[325178101,1714551040927,-150.77383924,0.00035304,2]
[325178102,1714551040937,-1016.086139,0.00035616,120]
[325178103,1714551040947,-301.54767848,0.00035898,4]
[325178104,1714551040956,-28601.1760015,0.00036,2]
[325178134,1714551042731,-446.72143296,0.00013689,2]
[325178139,1714551042741,-679.53217975,0.00036,2]
[325178146,1714551042758,-4621.58118704,0.00036,2]